[Event "CCT Julius Baer-D2 2024"]
[Site "Online"]
[Date "2024.10.01"]
[Round "5"]
[White "Lazavik, Denis"]
[Black "So, Wesley"]
[Result "1/2-1/2"]
[ECO "D11"]
[WhiteElo "2578"]
[BlackElo "2752"]
[Annotator "TA"]
[PlyCount "131"]
[EventDate "2024.09.25"]
[EventType "swiss"]
[EventCountry "NET"]
[SourceTitle "playchess.com"]
[Source "ChessBase"]
[SourceQuality "1"]
[TimeControl "600+2"]

1. d4 {[%emt 0:00:03]} d5 {[%emt 0:00:04]} 2. c4 {[%emt 0:00:02]} c6 {[%emt 0:00:04]} 3. Nf3 {[%emt 0:00:07]} Nf6 {[%emt 0:00:02]} 4. Qc2 {[%emt 0:00:11]} g6 {[%emt 0:00:04]} (4... e6 5. e3 b6 6. Nbd2 Bb7 7. Bd3 c5 8. cxd5 exd5 9. dxc5 bxc5 10. b3 Nc6 11. Bb2 Be7 12. O-O Rc8 13. Rac1 Nb4 14. Bb5+ Bc6 15. Bxc6+ Rxc6 16. Qb1 O-O 17. a3 Na6 18. Nd4 Rb6 {½-½ Lazavik,D (2544)-So,W (2761) Titled Tuesday intern op 14th Mar Early blitz 2023 (5)}) 5. cxd5 {[%emt 0:00:02]} cxd5 {[%emt 0:00:05]} 6. Nc3 {[%emt 0:00:02]} Bg7 {[%emt 0:00:02] D11: Slav Defence: 3 Nf3 sidelines and 3...Nf6 4 e3 Bg4.} 7. Bf4 {[%emt 0:00:03]} O-O {[%emt 0:00:02]} 8. e3 {[%emt 0:00:03]} Nc6 {[%emt 0:00:02]} 9. Be2 {[%emt 0:00:02]} Nh5 {[%emt 0:00:03]} 10. Be5 {[%emt 0:00:04]} f6 {[%emt 0:00:01]} 11. Bg3 {[%emt 0:00:02]} Be6 {[%emt 0:00:01]} 12. O-O {[%emt 0:00:03]} Bf7 $146 {[%emt 0:00:04]} ({Predecessor:} 12... Kh8 13. Na4 Bf5 14. Qb3 b6 15. Rfc1 Nxg3 16. hxg3 Rc8 17. Nc3 Na5 18. Qb5 Qd6 {½-½ Aranha Filho,A (2207)-Arango,A (1966) American Continental 18th 2024 (4)}) 13. Rfd1 {[%emt 0:00:09]} Rc8 {[%emt 0:00:13]} 14. Rac1 {[%emt 0:00:06]} e6 {[%emt 0:00:16]} 15. a3 {[%emt 0:00:13]} Kh8 {[%emt 0:00:29]} 16. b4 {[%emt 0:00:18]} Bg8 {[%emt 0:01:02]} 17. Qd2 {[%emt 0:00:48]} Ne7 {[%emt 0:00:25]} 18. Na4 {[%emt 0:00:19]} Nxg3 {[%emt 0:00:10]} 19. hxg3 {[%emt 0:00:02]} Nf5 {[%emt 0:00:02]} 20. Rxc8 {[%emt 0:00:28]} Qxc8 {[%emt 0:00:00]} 21. Rc1 {[%emt 0:00:04]} Qd7 {[%emt 0:00:03]} 22. Nc5 {[%emt 0:01:00]} Qe7 {[%emt 0:00:02]} 23. Rc2 {[%emt 0:00:04]} Nd6 {[%emt 0:00:05]} 24. Qc1 {[%emt 0:00:06]} e5 {[%emt 0:00:42]} 25. Na4 {[%emt 0:00:35]} e4 {[%emt 0:00:37]} 26. Nd2 {[%emt 0:00:23]} f5 {[%emt 0:00:05]} 27. Nc3 {[%emt 0:01:24]} a6 {[%emt 0:00:32]} 28. b5 {[%emt 0:00:06]} g5 {[%emt 0:00:49]} 29. bxa6 {[%emt 0:00:37]} bxa6 {[%emt 0:00:00]} 30. Bxa6 {[%emt 0:00:17]} f4 {[%emt 0:00:03]} 31. Nf1 {[%emt 0:00:06]} Nf5 {[%emt 0:00:47] [#]} 32. Be2 {[%emt 0:00:59]} (32. exf4 $2 Nxd4 33. Nxd5 Bxd5 $19) (32. gxf4 $6 $11) (32. Nb5 $1 $16) 32... fxe3 $11 {[%emt 0:01:13]} 33. fxe3 {[%emt 0:00:03]} (33. Nxe3 $2 Nxd4 34. Ncxd5 (34. Nexd5 $2 Qe5 $19) 34... Qe5 $19) 33... Nxd4 {[%emt 0:00:08]} 34. exd4 {[%emt 0:00:06]} Bxd4+ {[%emt 0:00:00]} 35. Kh1 {[%emt 0:00:21]} Qg7 {[%emt 0:00:17]} 36. Nh2 {[%emt 0:00:07]} Be5 {[%emt 0:00:02]} 37. Bg4 {[%emt 0:01:00]} Bxg3 {[%emt 0:00:10]} 38. Ne2 {[%emt 0:00:05]} Be5 {[%emt 0:00:02]} 39. Rc8 {[%emt 0:00:15]} Rxc8 {[%emt 0:00:33]} 40. Qxc8 {[%emt 0:00:01]} d4 {[%emt 0:00:10]} 41. Qf5 {[%emt 0:00:03]} d3 {[%emt 0:00:14]} 42. Qxe4 {[%emt 0:00:03]} dxe2 {[%emt 0:00:01]} 43. Qxe2 {[%emt 0:00:03]} Qc7 {[%emt 0:00:13]} 44. Nf3 {[%emt 0:00:08]} Bf6 {[%emt 0:00:17]} 45. Qd2 {[%emt 0:00:05]} Qg3 {[%emt 0:00:10]} 46. Qd7 {[%emt 0:00:06]} Qf4 {[%emt 0:00:07]} 47. Qf5 {[%emt 0:00:04]} Qc1+ {[%emt 0:00:15]} (47... Qxf5 {simplifies} 48. Bxf5 h6 49. Nd2 Kg7) 48. Kh2 {[%emt 0:00:00]} Qc7+ {[%emt 0:00:05]} 49. Kh1 {[%emt 0:00:02]} Be7 {[%emt 0:00:16]} 50. a4 {[%emt 0:00:16]} Qc1+ {[%emt 0:00:06]} 51. Kh2 {[%emt 0:00:00]} Bd6+ {[%emt 0:00:01]} 52. g3 {[%emt 0:00:01]} Qb2+ {[%emt 0:00:16]} 53. Kh3 {[%emt 0:00:00]} h6 {[%emt 0:00:00]} 54. a5 {[%emt 0:00:05]} (54. Qg6 $5 Bf8 $8 55. Qe8 $11) 54... Bb8 $2 {[%emt 0:00:13]} (54... Qa1 $11 {and Black stays safe.}) 55. Qg6 $2 {[%emt 0:00:04]} (55. Qf8 $18 Qb7 56. Be6 (56. Qxh6+ Qh7 $18) 56... g4+ 57. Kh4 (57. Kxg4 Qe4+ 58. Kh5 Qxe6 $11) (57. Bxg4 Qc7 $18)) 55... Qg7 $11 {[%emt 0:00:03]} 56. Qxg7+ {[%emt 0:00:02]} (56. Qc6 {seems wilder.} Bf7 57. Qb6 Qf8 58. Qf6+) 56... Kxg7 {[%emt 0:00:00]} 57. Nd4 {[%emt 0:00:01]} Bc4 {[%emt 0:00:03]} 58. Be2 {[%emt 0:00:05]} Ba7 {[%emt 0:00:02]} 59. Nf5+ {[%emt 0:00:03]} Kf6 {[%emt 0:00:01]} 60. Bxc4 {[%emt 0:00:01]} Kxf5 {[%emt 0:00:00]} 61. g4+ {[%emt 0:00:00]} Kf4 {[%emt 0:00:01]} 62. a6 {[%emt 0:00:01]} Bb6 {[%emt 0:00:01]} 63. Bd3 {[%emt 0:00:01]} Ba7 {[%emt 0:00:01]} 64. Bc4 {[%emt 0:00:00]} Bb6 {[%emt 0:00:00]} 65. Bd3 {[%emt 0:00:00]} Ba7 {[%emt 0:00:01]} 66. Bc4 $1 {[%emt 0:00:01]} 1/2-1/2

[Event "CCT Julius Baer-D2 2024"]
[Site "Online"]
[Date "2024.09.29"]
[Round "52"]
[White "Anton Guijarro, David"]
[Black "Daneshvar, Bardiya"]
[Result "0-1"]
[ECO "C65"]
[WhiteElo "2665"]
[BlackElo "2598"]
[Annotator "TA"]
[PlyCount "86"]
[EventDate "2024.09.25"]
[EventType "swiss"]
[EventCountry "NET"]
[SourceTitle "playchess.com"]
[Source "ChessBase"]
[SourceQuality "1"]
[TimeControl "600+2"]

{[%evp 11,86,53,54,38,53,55,75,59,64,54,61,65,76,37,92,67,119,122,115,114,113,67,87,45,91,90,85,88,112,111,112,117,108,0,35,0,0,0,0,0,0,0,0,0,0,0,0,-76,-74,-115,-103,-94,-78,-201,-174,-221,-200,-261,-269,-341,-344,-658,-384,-29990,-29991,-29991,-29992,-29992,-29993,-29993,-29994,-29994,-1903,-1619,-1619,-1556,-1556]} 1. e4 {[%emt 0:00:03]} e5 {[%emt 0:00:06]} 2. Nf3 {[%emt 0:00:01]} Nc6 {[%emt 0:00:01]} 3. Bb5 {[%emt 0:00:05]} Nf6 {[%emt 0:00:02]} 4. d3 {[%emt 0:00:06][%cal Bd2d3,Bd3d4,Bd4d5][%mdl 32] EV=19.67. Goes to d5 (dbg))} d6 {[%emt 0:00:04]} 5. O-O {[%emt 0:00:04]} Bd7 {[%emt 0:00:01]} 6. c3 {[%emt 0:00:07]} g6 {[%emt 0:00:03]} 7. d4 {[%emt 0:00:16] C65: Ruy Lopez: Berlin Verdediging (3...Pf6), ongebruikelijke varianten en 4 0-0 Lc5.} Bg7 {[%emt 0:00:11]} 8. Bd3 {[%emt 0:00:05] OK 8.h3 zet een nieuwe trend.} Bg4 $146 {[%emt 0:00:23]} ({Predecessor:} 8... exd4 9. cxd4 Bg4 10. d5 Ne5 11. Be2 Bxf3 12. Bxf3 O-O 13. Nc3 Re8 14. Re1 c6 15. dxc6 bxc6 {0-1 Anton Guijarro,D (2672)-Aronian,L (2725) Chessable Masters Div 2 Win rapid 2024 (1.3)}) 9. d5 {[%emt 0:00:29] OK. Wit staat beter.} Ne7 {[%emt 0:00:03] OK} 10. c4 {[%emt 0:00:04] OK} O-O {[%emt 0:00:28] OK} 11. Nc3 {[%emt 0:00:06] OK} Nh5 {[%emt 0:00:01]} 12. h3 {[%emt 0:00:04] OK} Bd7 {[%emt 0:00:03] Fout (0.6)} (12... Bxf3 $14 13. Qxf3 f5) 13. Re1 $16 {[%emt 0:00:07] OK} {Zwart zou moeten proberen} Nf4 {[%emt 0:00:13] Fout (0.5)} (13... b6 $14) 14. Bxf4 {[%emt 0:00:35] OK} exf4 {[%emt 0:00:01]} 15. Qd2 {[%emt 0:00:01]} g5 {[%emt 0:00:26] OK} {Wit zou moeten proberen} 16. Nxg5 {[%emt 0:01:14] Een dynamisch paardenpaar. Fout (0.5)} (16. e5 $16) 16... Ng6 $14 {[%emt 0:00:06] OK} 17. Nf3 {[%emt 0:00:12] OK} Ne5 {[%emt 0:00:22] [#] zou overwogen moeten worden. Fout (0.5)} (17... Be5 $14) 18. Be2 $1 $16 {[%emt 0:00:15] Sterk} Nxf3+ {[%emt 0:00:03] OK} 19. Bxf3 {[%emt 0:00:00]} Be5 {[%emt 0:00:01]} 20. Ne2 {[%emt 0:00:35][%cal Re2f4] OK} Qf6 {[%emt 0:00:12][%cal Og8h8] OK} 21. Rac1 {[%emt 0:00:39] OK} Kh8 {[%emt 0:00:41][%cal Of8g8]} {Wit zou moeten spelen} 22. Kh2 {[%emt 0:01:50] Fout (0.7)} (22. Kf1 $16) 22... Rg8 $14 {[%emt 0:00:06][%cal Of6h4] OK} 23. Rg1 {[%emt 0:00:07] Onnauwkeurig} Rg6 {[%emt 0:00:43][%cal Oa8g8] ...Rag8! zou dodelijk zijn. OK} 24. Rcd1 $1 {[%emt 0:00:20] Sterk} Rag8 {[%emt 0:01:17][%cal Og6h6] Hoopt vervolgens op ...Rh6! OK} 25. Nd4 $1 {[%emt 0:00:04] Sterk} Rh6 {[%emt 0:00:48][%cal Od7h3] ( -> ...Bxh3!)} (25... Bxh3 $5 {vereenvoudigt} 26. gxh3 Rxg1 27. Rxg1 Bxd4 28. Rxg8+ Kxg8 29. b3 Kf8) 26. Nf5 $1 {[%emt 0:00:07] Sterk} Bxf5 {[%emt 0:00:19] OK} 27. exf5 {[%emt 0:00:00]} Bxb2 {[%emt 0:00:57] OK} 28. Rb1 {[%emt 0:00:42] OK} Bc3 $36 {[%emt 0:00:09][%mdl 2048] Zwart is actiever. OK} 29. Qc2 {[%emt 0:00:28] Houdt het spel evenwichtig. Fout (0.8)} (29. Qd3 $11) 29... b6 $17 {[%emt 0:00:03] Beste (Gemakkelijk)} 30. Rgd1 {[%emt 0:00:17] Onnauwkeurig} Be5 {[%emt 0:00:11] OK} 31. Re1 {[%emt 0:00:41] OK} Rg5 {[%emt 0:00:22][%cal Oa7a5] OK} 32. c5 {[%emt 0:00:27] Mogelijk effectiever., blijft strijden., biedt betere bescherming., de moeite van het proberen waard., absoluut cruciaal., onmisbaar.,. Verliest de partij. Fout (1.2)} dxc5 $19 {[%emt 0:00:07][%cal Rf6f5] Beste (Gemakkelijk)} 33. Qa4 {[%emt 0:00:22] Lijkt misschien efficiënter. Fout (0.5)} (33. Re2) 33... Qxf5 {[%emt 0:00:09][%cal Oa7a6] OK} ({Weersta} 33... Rxf5 34. Qxa7 Rg5 35. Re4 $17) 34. Qe8+ {[%emt 0:00:06] Onnauwkeurig} Kg7 {[%emt 0:00:03] Beste (Gemakkelijk)} 35. Rb3 {[%emt 0:00:20]} Bd6 {[%emt 0:00:13][%cal Og5g2] Wit moet nu ...Rxg2+! voorkomen. OK} 36. Qd8 $2 {[%emt 0:00:05] Fout (3.1)} (36. Qe4) 36... Rhg6 {[%emt 0:01:04] Onnauwkeurig} 37. Re8 $2 {[%emt 0:00:05] [#] Stopt Rxg2+. Fout (Mat)} (37. Kh1 $19) 37... Rxg2+ $3 {[%emt 0:00:17][%mdl 512]} 38. Bxg2 {[%emt 0:00:01] OK} f3+ {[%emt 0:00:00]} 39. Kg1 {[%emt 0:00:00]} Bh2+ $1 {[%emt 0:00:10]} ({Minder sterk is} 39... fxg2 40. Rg8+ Kh6 41. Qh4+ Qh5 42. Rxg6+ fxg6 43. Qxh5+ Kxh5 44. Kxg2 $17) 40. Kf1 {[%emt 0:00:07]} fxg2+ {[%emt 0:00:01]} 41. Ke2 {[%emt 0:00:01]} g1=Q {[%emt 0:00:08]} (41... Qc2+ $142 42. Ke3 Rg3+ (42... g1=R 43. Rg8+ Kh6 44. Qh4#) 43. fxg3 g1=Q+ (43... g1=B+ $2 {slaat de verkeerde figuur.} 44. Kf3 $18) 44. Kf4 Qd4+ (44... Qxa2 45. Qg5#) 45. Re4 Qcxe4+ 46. Kg5 Qg6#) 42. Rg8+ {[%emt 0:00:01]} Kh6 {[%emt 0:00:01][%cal Rg1f2]} 43. Qh4+ {[%emt 0:00:06]} Qh5+ {[%emt 0:00:01] Blunder waarde: Wit=0.56/Zwart=0.38.  Fout:        	Wit=7      	Zwart=3      Onnauwkeurig:    	Wit=3      	Zwart=1      OK:         	Wit=13     	Zwart=16     Beste:        	---       	Zwart=3      Sterk:        	Wit=4      	---} 0-1

[Event "CCT Julius Baer-D2 2024"]
[Site "Online"]
[Date "2024.09.29"]
[Round "52"]
[White "Durarbayli, Vasif"]
[Black "Bortnyk, Olexandr"]
[Result "1-0"]
[ECO "B03"]
[WhiteElo "2626"]
[BlackElo "2608"]
[Annotator "TA"]
[PlyCount "76"]
[EventDate "2024.09.25"]
[EventType "swiss"]
[EventCountry "NET"]
[SourceTitle "playchess.com"]
[Source "ChessBase"]
[SourceQuality "1"]
[TimeControl "600+2"]

{[%evp 12,76,30,36,28,29,45,45,49,51,48,56,70,42,51,42,47,47,40,-11,0,-25,-10,-13,0,-36,95,133,194,195,185,215,208,206,295,299,325,337,343,325,395,402,533,433,444,456,930,940,932,935,1059,1021,1126,1123,945,597,596,597,1535,1515,1743,1704,1647,941,1839,1783,1317]} 1. e4 {[%emt 0:00:02][%cal Be2e4,Be4e5][%mdl 32]} Nf6 {[%emt 0:00:08]} 2. e5 {[%emt 0:00:01]} Nd5 {[%emt 0:00:01]} 3. d4 {[%emt 0:00:01]} d6 {[%emt 0:00:00]} 4. c4 {[%emt 0:00:00]} Nb6 {[%emt 0:00:01]} 5. exd6 {[%emt 0:00:01]} exd6 {[%emt 0:00:00]} 6. Nc3 {[%emt 0:00:00]} Be7 {[%emt 0:00:01]} 7. Bd3 {[%emt 0:00:01]} O-O {[%emt 0:00:01]} 8. Nge2 {[%emt 0:00:01]} Na6 {[%emt 0:00:00]} 9. a3 {[%emt 0:00:01]} c6 {[%emt 0:00:01] White is slightly better.} 10. Qc2 {[%emt 0:00:01]} h6 {[%emt 0:00:00]} 11. O-O {[%emt 0:00:11]} Re8 {[%emt 0:00:09]} 12. b3 {[%emt 0:00:11][%cal Bb2b3,Bb3b4,Bb4b5,Bb5c6][%mdl 32]} d5 {[%emt 0:00:02]} 13. c5 {[%emt 0:00:36]} Nd7 {[%emt 0:00:01]} 14. b4 {[%emt 0:00:14]} Nc7 {[%emt 0:00:03]} 15. f4 {[%emt 0:00:01]} (15. Ng3 $14) 15... Bf6 $11 {[%emt 0:00:08]} 16. f5 {[%emt 0:00:10] Repels Ne6} b6 {[%emt 0:01:26]} 17. Bf4 {[%emt 0:00:22]} a5 {[%emt 0:00:01]} 18. b5 {[%emt 0:01:06]} bxc5 {[%emt 0:01:11]} (18... Bb7 $1 $15 {keeps the upper hand.} 19. cxb6 Nxb6) 19. bxc6 $16 {[%emt 0:00:06] White is more active. White stays focused until the end.} c4 {[%emt 0:00:42] [#]} (19... Rxe2 $16 20. Nxe2 c4) 20. Bxc7 $1 $18 {[%emt 0:01:28]} ({And not} 20. cxd7 Qxd7 21. Rae1 Ba6 (21... cxd3 22. Qxd3 Bh4 23. Rb1 $15) 22. Bxc4 dxc4 $19) 20... Qxc7 {[%emt 0:00:00]} 21. Nxd5 {[%emt 0:00:03] Excellent horsemanship.} Qxc6 {[%emt 0:00:13] [#]} 22. Be4 {[%emt 0:00:03]} Ra6 {[%emt 0:02:36] [#]} (22... Rxe4 $142 23. Qxe4 Bb7 24. Nxf6+ Nxf6 25. Qxc6 Bxc6) 23. Ne7+ $1 {[%emt 0:00:24][%mdl 512]} Rxe7 {[%emt 0:00:01]} (23... Bxe7 24. Bxc6) 24. Bxc6 {[%emt 0:00:00]} Rxc6 {[%emt 0:00:01]} 25. Rad1 {[%emt 0:00:22]} Nb6 {[%emt 0:00:09]} 26. Nc3 {[%emt 0:00:14] Prevents Nd5} Re3 {[%emt 0:01:03]} 27. Ne4 {[%emt 0:00:42] Black must now prevent d5. White is clearly winning.} Nd5 {[%emt 0:00:40]} 28. Qa4 {[%emt 0:00:39]} Bd7 {[%emt 0:01:04]} (28... Bb7 $142) 29. Qxa5 {[%emt 0:00:17]} Rxe4 {[%emt 0:00:30]} 30. Qxd5 {[%emt 0:00:04]} Re7 {[%emt 0:00:00]} 31. Rfe1 {[%emt 0:00:14]} Rxe1+ {[%emt 0:00:02]} 32. Rxe1 {[%emt 0:00:00]} Rc7 {[%emt 0:00:00]} 33. Qd6 {[%emt 0:01:44]} Rb7 {[%emt 0:00:01]} 34. Qc5 {[%emt 0:00:12]} Rb3 {[%emt 0:00:06]} 35. Qd5 {[%emt 0:00:40]} Bb5 {[%emt 0:00:20] [#]} 36. a4 $1 {[%emt 0:00:02]} Bxa4 {[%emt 0:00:27]} (36... Ba6 37. Qa8+) 37. Qa8+ {[%emt 0:00:01]} Kh7 {[%emt 0:00:00]} 38. Qxa4 {[%emt 0:00:01]} Bxd4+ {[%emt 0:00:00] Weighted Error Value: White=0.34/Black=0.37.  Mistake:       	White=1     	Black=4      Inaccurate:     	White=2     	Black=2      OK:         	White=12    	Black=7      Best:        	White=2     	---        Strong:       	White=1     	---        Brilliant:      	White=1     	---} 1-0

[Event "CCT Julius Baer-D2 2024"]
[Site "Online"]
[Date "2024.09.29"]
[Round "52"]
[White "Indjic, Aleksandar"]
[Black "Madaminov, Mukhiddin"]
[Result "1/2-1/2"]
[ECO "D55"]
[WhiteElo "2611"]
[BlackElo "2512"]
[Annotator "RC"]
[PlyCount "67"]
[EventDate "2024.09.25"]
[EventType "swiss"]
[EventCountry "NET"]
[SourceTitle "playchess.com"]
[Source "ChessBase"]
[SourceQuality "1"]
[TimeControl "600+2"]

1. d4 {[%emt 0:00:03]} Nf6 {[%emt 0:00:09]} 2. c4 {[%emt 0:00:01]} e6 {[%emt 0:00:03]} 3. Nc3 {[%emt 0:00:02]} d5 {[%emt 0:00:03]} 4. Bg5 {[%emt 0:00:02]} Be7 {[%emt 0:00:05]} 5. e3 {[%emt 0:00:01]} O-O {[%emt 0:00:05]} 6. Nf3 {[%emt 0:00:03]} h6 {[%emt 0:00:02]} 7. Bxf6 {[%emt 0:00:01]} Bxf6 {[%emt 0:00:01]} 8. Rc1 {[%emt 0:00:01]} c6 {[%emt 0:00:27]} 9. h4 {[%emt 0:00:01]} g6 {[%emt 0:00:03]} 10. g4 {[%emt 0:00:02]} Bg7 {[%emt 0:00:01]} 11. g5 {[%emt 0:00:02]} h5 {[%emt 0:00:03]} 12. e4 {[%emt 0:00:00]} c5 {[%emt 0:01:07]} 13. dxc5 {[%emt 0:00:14]} d4 {[%emt 0:00:09]} 14. Nb5 {[%emt 0:00:02]} Nc6 {[%emt 0:01:32]} 15. Qd2 {[%emt 0:00:11]} a6 {[%emt 0:00:06]} 16. Nd6 {[%emt 0:00:07]} b6 {[%emt 0:00:02]} 17. Nxc8 {[%emt 0:00:02]} bxc5 {[%emt 0:00:04]} 18. Nh2 {[%emt 0:00:32]} Rxc8 {[%emt 0:00:08]} 19. f4 {[%emt 0:00:01]} f5 {[%emt 0:00:33]} 20. e5 {[%emt 0:00:23]} Qa5 {[%emt 0:01:24]} 21. Qxa5 {[%emt 0:00:09]} Nxa5 {[%emt 0:00:00]} 22. Bg2 {[%emt 0:00:02]} Nc6 {[%emt 0:00:01]} 23. Bxc6 {[%emt 0:00:02]} Rxc6 {[%emt 0:00:00]} 24. Nf1 {[%emt 0:00:07]} Rb8 {[%emt 0:00:01]} 25. b3 {[%emt 0:00:15]} a5 {[%emt 0:00:01]} 26. Nd2 {[%emt 0:00:02]} Bf8 {[%emt 0:00:01]} 27. Ke2 {[%emt 0:00:02]} Kf7 {[%emt 0:00:01]} 28. Kd3 {[%emt 0:00:01]} Ke8 {[%emt 0:00:03]} 29. Rb1 {[%emt 0:00:01]} Kd7 {[%emt 0:00:02]} 30. Rb2 {[%emt 0:00:19]} Rcb6 {[%emt 0:00:01]} 31. Rhb1 {[%emt 0:00:02]} R8b7 {[%emt 0:00:03]} 32. a3 {[%emt 0:00:03]} Kc6 {[%emt 0:00:01]} 33. Nf3 {[%emt 0:00:06]} Rd7 {[%emt 0:00:13]} 34. a4 {[%emt 0:00:07]} 1/2-1/2

[Event "CCT Julius Baer-D2 2024"]
[Site "Online"]
[Date "2024.09.29"]
[Round "52"]
[White "Bortnyk, Olexandr"]
[Black "Durarbayli, Vasif"]
[Result "1-0"]
[ECO "C77"]
[WhiteElo "2608"]
[BlackElo "2626"]
[Annotator "TA"]
[PlyCount "83"]
[EventDate "2024.09.25"]
[EventType "swiss"]
[EventCountry "NET"]
[SourceTitle "playchess.com"]
[Source "ChessBase"]
[SourceQuality "1"]
[TimeControl "600+2"]

{[%evp 13,83,-22,-13,-20,-6,-23,-20,-29,-30,-41,0,0,27,-59,0,-27,16,-30,-25,-77,-61,-72,-68,-81,-61,-59,-51,-69,-59,-55,-64,-84,-80,-54,-51,-61,-55,-121,-115,-92,-37,-145,-49,-81,0,0,57,34,49,48,98,6,13,0,13,0,57,0,23,0,0,0,0,0,0,0,0,0,304,280,1459,1423]} 1. e4 {[%emt 0:00:07]} e5 {[%emt 0:00:03]} 2. Nf3 {[%emt 0:00:09]} Nc6 {[%emt 0:00:02]} 3. Bb5 {[%emt 0:00:02]} a6 {[%emt 0:00:00]} 4. Ba4 {[%emt 0:00:01]} Nf6 {[%emt 0:00:01]} 5. Qe2 {[%emt 0:00:02]} b5 {[%emt 0:00:10]} 6. Bb3 {[%emt 0:00:02]} Bc5 {[%emt 0:00:06]} 7. c3 {[%emt 0:00:16]} d6 {[%emt 0:00:03]} 8. h3 {[%emt 0:00:08] C77: Ruy Lopez: 3...a6 4 La4 Pf6, Ongebruikelijke Varianten.} h6 {[%emt 0:00:12]} 9. O-O {[%emt 0:00:15]} O-O {[%emt 0:00:08] OK} 10. Rd1 {[%emt 0:00:06] met als doel voor d4. OK. De stelling is in evenwicht.} Bb6 {[%emt 0:00:40] OK} 11. d3 {[%emt 0:00:30]} Re8 {[%emt 0:00:42] Onnauwkeurig} 12. Nbd2 {[%emt 0:00:02] Beste} Be6 {[%emt 0:00:37] Onnauwkeurig} {Wit heeft de voorkeur om te spelen.} 13. Bc2 {[%emt 0:00:58] Fout (0.9)} (13. Bxe6 $11 Rxe6 14. Nf1) 13... Nh5 {[%emt 0:00:58] Hoopt vervolgens op ...Nf4. Onnauwkeurig} 14. Nf1 $1 {[%emt 0:00:08][%cal Of3e5] Sterk} Qf6 {[%emt 0:00:05] OK} 15. Kh2 $146 {[%emt 0:01:32] is verkieslijker. Fout (0.5)} (15. Be3) ({Predecessor:} 15. d4 Bc4 16. Bd3 Bxd3 17. Qxd3 d5 18. exd5 e4 19. Qc2 exf3 20. dxc6 fxg2 21. Kxg2 Qxc6+ {0-1 Norman,K (2005)-Aleksandrov,A (2496) Orsha op-A 21st 2023 (8)}) 15... d5 $11 {[%emt 0:00:36] OK} 16. Bb3 {[%emt 0:00:09] Houdt de stelling gelijk. Fout (0.5)} (16. Ng3 $11 Nxg3 17. fxg3) 16... Rad8 {[%emt 0:00:25]} (16... Nf4 $5 {lijkt wild.} 17. Bxf4 dxe4 18. Qxe4 Bxb3 19. Bg5 hxg5 20. axb3 Bxf2 21. Nxg5 Qxg5 22. Qxc6 Rad8) 17. Ng3 {[%emt 0:00:11]} Nxg3 {[%emt 0:00:51] OK} 18. fxg3 {[%emt 0:00:01]} dxe4 {[%emt 0:00:01]} 19. dxe4 {[%emt 0:00:07]} Rxd1 {[%emt 0:00:39] OK} 20. Qxd1 {[%emt 0:00:00]} Rd8 {[%emt 0:00:21]} 21. Qe2 {[%emt 0:00:01]} Na5 {[%emt 0:00:07]} 22. Bxe6 {[%emt 0:00:05] OK} Qxe6 {[%emt 0:00:00]} 23. b3 {[%emt 0:00:09] Stopt Qc4. OK} Nb7 {[%emt 0:00:03]} 24. Ba3 {[%emt 0:00:53] Afleidend Qd6. OK} Bc5 {[%emt 0:00:34]} {Beter voor Wit is.} 25. Bb2 {[%emt 0:00:02] Fout (0.7)} (25. Bxc5 $15 Nxc5 26. c4) 25... f6 $17 {[%emt 0:00:06] Beste (Gemakkelijk)} 26. Nh4 {[%emt 0:00:16][%cal Bf3h4,Bh4f5,Bf5e3][%mdl 32] [#] EV=15.59. Goes to f1 (dbg)). Beste} {Beter voor Zwart is.} Bf8 {[%emt 0:00:38] Fout (0.6)} (26... Qd7 $1 $17 {...Qd2 zou dodelijk zijn.} 27. Nf5 Bf8) {De beste zet voor Wit is.} 27. Rf1 {[%emt 0:00:15] Fout (1.1)} (27. Rd1 $15) {De beste zet voor Zwart is.} 27... c5 {[%emt 0:00:24] Fout (1.0)} (27... Qd7 $17 28. Qh5 Qd3) 28. Bc1 {[%emt 0:00:05] Onnauwkeurig} {Zwart kan het beste spelen.} Nd6 {[%emt 0:00:08] Fout (0.8)} (28... c4 $17 {En nu zou ...Rd3 winnen.} 29. Ng6 cxb3 30. axb3 Bc5 (30... Qxb3 31. Qg4 $15)) 29. Rd1 $11 {[%emt 0:00:21] OK} {Zwart kan beter proberen.} Nf7 {[%emt 0:00:19] Fout (0.6)} (29... c4 $11) 30. Rxd8 $14 {[%emt 0:00:21] Beste (Gemakkelijk)} Nxd8 {[%emt 0:00:01]} 31. Nf5 {[%emt 0:00:01] OK} {Zwart kan het beste proberen.} Kh7 {[%emt 0:00:11] Fout (0.5)} (31... c4 $14) {Wit kan het beste proberen.} 32. Qd3 {[%emt 0:00:32] Wit is actiever. Fout (0.9)} (32. h4 $16) 32... Nf7 $11 {[%emt 0:00:02] OK} 33. c4 {[%emt 0:00:20]} bxc4 {[%emt 0:00:09] OK} 34. bxc4 {[%emt 0:00:02]} {Zwart kan beter kiezen.} Nd6 {[%emt 0:00:05] Fout (0.6)} (34... h5 $11) {Wit kan beter kiezen.} 35. Ne3 {[%emt 0:00:01] Fout (0.6)} (35. Nxd6 $14 Qxd6 36. Qa3) 35... Qf7 {[%emt 0:00:07]} 36. Ba3 {[%emt 0:00:12]} Qg6 $1 {[%emt 0:00:28][%cal Rg6e4] Stopt g4. Sterk} 37. Bxc5 {[%emt 0:00:51]} Nxe4 {[%emt 0:00:01] OK} 38. Bxf8 {[%emt 0:00:02] OK} Qxg3+ {[%emt 0:00:00] OK} 39. Kg1 {[%emt 0:00:01] OK} (39. Kh1 $5 Qe1+ $8 40. Kh2 Qg3+ 41. Kh1 Qe1+ 42. Kh2 Qg3+ $11) 39... Qf2+ {[%emt 0:00:20] Beste (Gemakkelijk)} 40. Kh1 {[%emt 0:00:03] OK} f5 {[%emt 0:00:04][%mdl 8192] [#] Zwart zit goed. Verliest partij (3.0)} (40... Qe1+ $1 $11 41. Kh2 Qg3+ 42. Kg1 Qf2+ 43. Kh1 Qe1+ 44. Kh2 Qg3+) 41. Nf1 $1 $18 {[%emt 0:00:03] Sterk} Qxa2 $2 {[%emt 0:00:04] Fout (11.8)} (41... Kg6 42. Kh2 Qf4+ 43. Kg1 (43. Ng3 h5 $18) 43... Qf2+ 44. Kh2 Qf4+ 45. Ng3 h5) 42. Qd7 {[%emt 0:00:03][%csl LRf5,LRg7] Blunder waarde: Wit=0.23 (precies) /Zwart=0.49. Beste.  Verliest partij:   	---       	Zwart=1      Fout:        	Wit=7      	Zwart=7      Onnauwkeurig:    	Wit=1      	Zwart=3      OK:         	Wit=9      	Zwart=10     Beste:        	Wit=4      	Zwart=2      Sterk:        	Wit=2      	Zwart=1} 1-0